[Event "CZE Extraliga 2019-20"]
[Site "Czech Republic"]
[Date "2020.01.26"]
[Round "6.6"]
[White "Roubalik, Jakub"]
[Black "Jirovsky, Milos"]
[Result "0-1"]
[ECO "D52"]
[WhiteElo "2405"]
[BlackElo "2452"]
[Annotator "ChessBase"]
[PlyCount "150"]
[EventDate "2019.09.15"]
[EventType "team-tourn"]
[EventCountry "CZE"]
[SourceTitle "playchess.com"]
[Source "ChessBase"]
[SourceQuality "1"]
[TimeControl "40/5400+30:1800+30"]

1. d4 {[%emt 0:00:00]} d5 {[%emt 0:00:00]} 2. c4 {[%emt 0:00:00]} c6 {[%emt 0:00:00]} 3. Nc3 {[%emt 0:00:00]} Nf6 {[%emt 0:00:00]} 4. Nf3 {[%emt 0:00:00]} e6 {[%emt 0:00:12]} 5. Bg5 {[%emt 0:00:00]} Nbd7 {[%emt 0:00:07]} 6. e3 {[%emt 0:00:09]} Qa5 {[%emt 0:00:08]} 7. Nd2 {[%emt 0:01:15]} dxc4 {[%emt 0:00:30]} 8. Bxf6 {[%emt 0:00:06]} Nxf6 {[%emt 0:00:03]} 9. Nxc4 {[%emt 0:00:12]} Qc7 {[%emt 0:00:04]} 10. Be2 {[%emt 0:01:56]} Bd7 {[%emt 0:00:18]} 11. O-O {[%emt 0:07:29]} c5 {[%emt 0:01:52]} 12. Rc1 {[%emt 0:11:29]} cxd4 {[%emt 0:00:51]} 13. exd4 {[%emt 0:00:29]} Bd6 {[%emt 0:00:09]} 14. Nxd6+ {[%emt 0:04:08]} Qxd6 {[%emt 0:00:04]} 15. Nb5 {[%emt 0:00:32]} Bxb5 {[%emt 0:00:07]} 16. Bxb5+ {[%emt 0:00:02]} Ke7 {[%emt 0:00:07]} 17. Qf3 {[%emt 0:00:50]} Rab8 {[%emt 0:01:42]} 18. Rfd1 {[%emt 0:17:43]} Rhd8 {[%emt 0:00:55]} 19. Bc4 {[%emt 0:03:15]} Kf8 {[%emt 0:03:44]} 20. Bb3 {[%emt 0:03:10]} Rd7 {[%emt 0:05:44]} 21. Ba4 {[%emt 0:08:03]} Re7 {[%emt 0:06:05]} 22. g3 {[%emt 0:05:32]} Rd8 {[%emt 0:00:58]} 23. Qc3 {[%emt 0:04:45]} Nd5 {[%emt 0:14:23]} 24. Qc5 {[%emt 0:03:51]} g6 {[%emt 0:00:55]} 25. Bb3 {[%emt 0:02:05]} b6 {[%emt 0:01:29]} 26. Qb5 {[%emt 0:02:44]} Red7 {[%emt 0:03:34]} 27. Rc6 {[%emt 0:05:06]} Qe7 {[%emt 0:05:10]} 28. Qe2 {[%emt 0:01:49]} Qf6 {[%emt 0:00:42]} 29. Bxd5 {[%emt 0:12:52]} Rxd5 {[%emt 0:00:16]} 30. Rc7 {[%emt 0:00:07]} R8d7 {[%emt 0:01:00]} 31. Rxd7 {[%emt 0:00:17]} Rxd7 {[%emt 0:00:02]} 32. Qc4 {[%emt 0:02:23]} Kg7 {[%emt 0:02:20]} 33. Qa4 {[%emt 0:01:17]} Qd8 {[%emt 0:00:46]} 34. h4 {[%emt 0:01:29]} Qc7 {[%emt 0:01:01]} 35. d5 {[%emt 0:00:53]} exd5 {[%emt 0:02:08]} 36. Qd4+ {[%emt 0:00:01]} f6 {[%emt 0:00:30]} 37. Re1 {[%emt 0:01:11]} Qc5 {[%emt 0:01:03]} 38. Qf4 {[%emt 0:01:08]} Qc7 {[%emt 0:05:22]} 39. Qd4 {[%emt 0:00:16]} Qc4 {[%emt 0:00:20]} 40. Rd1 {[%emt 0:00:50]} Qxd4 {[%emt 0:01:14]} 41. Rxd4 {[%emt 0:30:10]} Kf7 {[%emt 0:30:16]} 42. Kf1 {[%emt 0:00:00]} Ke6 {[%emt 0:00:00]} 43. Ke2 {[%emt 0:00:00]} Ke5 {[%emt 0:00:00]} 44. Ke3 {[%emt 0:00:00]} Rc7 {[%emt 0:00:00]} 45. Rd2 {[%emt 0:00:00]} Rc4 {[%emt 0:00:00]} 46. f3 {[%emt 0:00:00]} h5 {[%emt 0:00:00]} 47. Re2 {[%emt 0:00:00]} g5 {[%emt 0:00:00]} 48. hxg5 {[%emt 0:00:00]} fxg5 {[%emt 0:00:00]} 49. Kd3+ {[%emt 0:00:00]} Kf6 {[%emt 0:00:00]} 50. Re8 {[%emt 0:00:00]} h4 {[%emt 0:00:00]} 51. gxh4 {[%emt 0:00:00]} gxh4 {[%emt 0:00:00]} 52. Rd8 {[%emt 0:00:00]} Rc7 {[%emt 0:00:00]} 53. Rd6+ {[%emt 0:00:00]} Ke5 {[%emt 0:02:37]} 54. Rh6 {[%emt 0:00:00]} Rc4 {[%emt 0:01:39]} 55. Rh5+ {[%emt 0:00:00]} Kd6 {[%emt 0:00:28]} 56. b3 {[%emt 0:00:00]} Rb4 {[%emt 0:00:19]} 57. Ke3 {[%emt 0:00:00]} a5 {[%emt 0:00:09]} 58. f4 {[%emt 0:00:00]} a4 {[%emt 0:00:06]} 59. bxa4 {[%emt 0:01:05]} Rxa4 {[%emt 0:00:07]} 60. Rxh4 {[%emt 0:00:11]} Rxa2 {[%emt 0:00:10]} 61. Rh6+ {[%emt 0:00:21]} Kc5 {[%emt 0:00:09]} 62. f5 {[%emt 0:01:06]} d4+ {[%emt 0:00:27]} 63. Kf4 {[%emt 0:02:19]} Rf2+ {[%emt 0:02:13]} 64. Ke4 {[%emt 0:02:19]} Re2+ {[%emt 0:04:07]} 65. Kf3 {[%emt 0:01:07]} Re1 {[%emt 0:00:52]} 66. Re6 {[%emt 0:01:48]} Rf1+ {[%emt 0:00:39]} 67. Ke4 {[%emt 0:00:04]} b5 {[%emt 0:00:26]} 68. f6 {[%emt 0:00:20]} b4 {[%emt 0:01:11]} 69. Re5+ {[%emt 0:00:46]} Kc4 {[%emt 0:00:31]} 70. Re7 {[%emt 0:01:57]} Rxf6 {[%emt 0:01:06]} 71. Rc7+ {[%emt 0:00:05]} Kb5 {[%emt 0:04:40]} 72. Rb7+ {[%emt 0:01:52]} Rb6 {[%emt 0:01:00]} 73. Rd7 {[%emt 0:00:32]} b3 {[%emt 0:00:35]} 74. Kd3 {[%emt 0:00:34]} Kb4 {[%emt 0:00:10]} 75. Rxd4+ {[%emt 0:00:42]} Ka3 {[%emt 0:00:05]} 0-1

[Event "CZE Extraliga 2019-20"]
[Site "Czech Republic"]
[Date "2020.01.26"]
[Round "6.6"]
[White "Obsivac, Josef"]
[Black "Simacek, Pavel"]
[Result "1/2-1/2"]
[ECO "A79"]
[WhiteElo "2285"]
[BlackElo "2486"]
[Annotator "ChessBase"]
[PlyCount "107"]
[EventDate "2019.09.15"]
[EventType "team-tourn"]
[EventCountry "CZE"]
[SourceTitle "playchess.com"]
[Source "ChessBase"]
[SourceQuality "1"]
[TimeControl "40/5400+30:1800+30"]

1. d4 {[%emt 0:00:00]} Nf6 {[%emt 0:00:00]} 2. c4 {[%emt 0:00:00]} c5 {[%emt 0:00:00]} 3. d5 {[%emt 0:00:00]} e6 {[%emt 0:00:01]} 4. Nc3 {[%emt 0:00:05]} exd5 {[%emt 0:00:04]} 5. cxd5 {[%emt 0:00:06]} d6 {[%emt 0:00:04]} 6. Nf3 {[%emt 0:00:12]} g6 {[%emt 0:00:07]} 7. Nd2 {[%emt 0:00:19]} Bg7 {[%emt 0:00:13]} 8. e4 {[%emt 0:00:10]} O-O {[%emt 0:00:12]} 9. Be2 {[%emt 0:00:08]} Re8 {[%emt 0:00:22]} 10. O-O {[%emt 0:00:14]} Na6 {[%emt 0:00:16]} 11. f3 {[%emt 0:01:12]} Nc7 {[%emt 0:00:07]} 12. a4 {[%emt 0:00:08]} b6 {[%emt 0:00:21]} 13. Nc4 {[%emt 0:03:55]} Ba6 {[%emt 0:00:34]} 14. Bg5 {[%emt 0:02:47]} h6 {[%emt 0:00:35]} 15. Bh4 {[%emt 0:01:46]} g5 {[%emt 0:02:01]} 16. Bf2 {[%emt 0:08:18]} Qd7 {[%emt 0:08:42]} 17. Ne3 {[%emt 0:07:56]} Bxe2 {[%emt 0:01:17]} 18. Nxe2 {[%emt 0:02:47]} a6 {[%emt 0:11:59]} 19. Ng3 {[%emt 0:02:19]} b5 {[%emt 0:00:15]} 20. Ngf5 {[%emt 0:00:28]} Bf8 {[%emt 0:00:07]} 21. b3 {[%emt 0:06:17]} bxa4 {[%emt 0:10:42]} 22. bxa4 {[%emt 0:00:16]} Reb8 {[%emt 0:00:07]} 23. Qc2 {[%emt 0:05:41]} Nce8 {[%emt 0:03:58]} 24. Nc4 {[%emt 0:11:09]} Qd8 {[%emt 0:02:52]} 25. Be1 {[%emt 0:02:36]} Nh5 {[%emt 0:03:08]} 26. Bc3 {[%emt 0:04:21]} Nf4 {[%emt 0:01:26]} 27. g3 {[%emt 0:01:16]} Ng6 {[%emt 0:00:45]} 28. Rad1 {[%emt 0:03:13]} Ne7 {[%emt 0:38:40]} 29. Nfe3 {[%emt 0:11:17]} Ng6 {[%emt 0:08:09]} 30. Kh1 {[%emt 0:04:34]} Bg7 {[%emt 0:00:38]} 31. f4 {[%emt 0:01:44]} gxf4 {[%emt 0:02:33]} 32. gxf4 {[%emt 0:00:06]} Bxc3 {[%emt 0:03:55]} 33. Qxc3 {[%emt 0:00:03]} Qf6 {[%emt 0:00:44]} 34. e5 {[%emt 0:01:16]} Qh8 {[%emt 0:00:20]} 35. Qc2 {[%emt 0:05:28]} dxe5 {[%emt 0:00:42]} 36. fxe5 {[%emt 0:00:26]} Qh7 {[%emt 0:01:28]} 37. d6 {[%emt 0:03:20]} Nf8 {[%emt 0:00:24]} 38. Nf5 {[%emt 0:02:20]} Kh8 {[%emt 0:00:01]} 39. Qg2 {[%emt 0:05:30]} Ra7 {[%emt 0:00:39]} 40. Rd3 {[%emt 0:03:44]} Ng7 {[%emt 0:00:34]} 41. Qxg7+ {[%emt 0:14:07]} Qxg7 {[%emt 0:00:00]} 42. Nxg7 {[%emt 0:00:04]} Kxg7 {[%emt 0:00:44]} 43. Rg3+ {[%emt 0:01:28]} Kh7 {[%emt 0:02:31]} 44. Ne3 {[%emt 0:01:46]} Rb3 {[%emt 0:06:35]} 45. Rgf3 {[%emt 0:03:32]} Kg8 {[%emt 0:00:29]} 46. Ng4 {[%emt 0:01:07]} Rxf3 {[%emt 0:00:12]} 47. Rxf3 {[%emt 0:00:01]} Kg7 {[%emt 0:02:14]} 48. Nf6 {[%emt 0:01:17]} Ng6 {[%emt 0:01:33]} 49. d7 {[%emt 0:03:22]} Ra8 {[%emt 0:00:04]} 50. Rd3 {[%emt 0:00:42]} Rd8 {[%emt 0:00:05]} 51. Rd5 {[%emt 0:00:42]} c4 {[%emt 0:03:04]} 52. Rc5 {[%emt 0:01:13]} Kf8 {[%emt 0:00:14]} 53. Rxc4 {[%emt 0:06:22]} Nxe5 {[%emt 0:00:56]} 54. Rc5 {[%emt 0:02:04]} 1/2-1/2

[Event "CZE Extraliga 2019-20"]
[Site "Czech Republic"]
[Date "2020.01.26"]
[Round "6.7"]
[White "TUR9 Vlasak Lukas FM"]
[Black "SLA10 Pisk Petr IM"]
[Result "1-0"]
[ECO "B30"]
[WhiteElo "2423"]
[BlackElo "2338"]
[Annotator "NA"]
[PlyCount "61"]
[EventDate "2019.09.15"]
[EventType "team-tourn"]
[EventCountry "CZE"]
[SourceTitle "playchess.com"]
[Source "ChessBase"]
[SourceQuality "1"]
[TimeControl "40/5400+30:1800+30"]

1. e4 c5 2. Nf3 Nc6 3. Bb5 e6 4. O-O Nge7 5. Re1 Nd4 6. Bf1 Nec6 7. d3 g6 8. Nbd2 Bg7 9. c3 Nxf3+ 10. Nxf3 O-O 11. Be3 d6 12. d4 cxd4 13. cxd4 Bd7 $14 14. Qd2 Re8 15. b4 Ne7 16. Bh6 Bh8 17. a4 a5 18. b5 Nc8 19. e5 dxe5 20. dxe5 Nb6 21. Bg5 Qb8 22. Rac1 Bg7 23. h4 Bf8 24. h5 Rc8 25. Qd4 Nd5 26. hxg6 hxg6 27. Bc4 b6 28. Bxd5 exd5 29. Bf6 Be6 30. Qh4 Bg7 31. Ng5 1-0

[Event "CZE Extraliga 2019-20"]
[Site "Czech Republic"]
[Date "2020.01.26"]
[Round "6.7"]
[White "Hrabusa, Matej"]
[Black "Cerveny, Martin"]
[Result "0-1"]
[ECO "B90"]
[WhiteElo "2368"]
[BlackElo "2350"]
[Annotator "NA"]
[PlyCount "116"]
[EventDate "2019.09.15"]
[EventType "team-tourn"]
[EventCountry "CZE"]
[SourceTitle "playchess.com"]
[Source "ChessBase"]
[SourceQuality "1"]
[TimeControl "40/5400+30:1800+30"]

1. e4 {[%emt 0:00:00]} c5 {[%emt 0:00:00]} 2. Nf3 {[%emt 0:00:00]} d6 {[%emt 0:00:00]} 3. d4 {[%emt 0:00:00]} cxd4 {[%emt 0:00:00]} 4. Nxd4 {[%emt 0:00:00]} Nf6 {[%emt 0:00:00]} 5. Nc3 {[%emt 0:00:00]} a6 {[%emt 0:00:00]} 6. h3 {[%emt 0:00:12]} e6 {[%emt 0:01:06]} 7. g4 {[%emt 0:00:10]} d5 {[%emt 0:01:54]} 8. exd5 {[%emt 0:00:24]} Nxd5 {[%emt 0:00:07]} 9. Nde2 {[%emt 0:00:10]} Bb4 {[%emt 0:00:31]} 10. Bg2 {[%emt 0:00:56]} O-O {[%emt 0:01:26]} 11. O-O {[%emt 0:00:26]} Nxc3 {[%emt 0:03:19]} 12. Nxc3 {[%emt 0:00:30]} Bxc3 {[%emt 0:02:45]} 13. bxc3 {[%emt 0:04:03]} Qc7 {[%emt 0:03:51]} 14. Qf3 {[%emt 0:04:51]} Bd7 {[%emt 0:07:51]} 15. Qxb7 {[%emt 0:05:47]} Ra7 {[%emt 0:04:54]} 16. Qb4 {[%emt 0:16:15]} (16. Qxc7 $16 Rxc7 17. Bf4 Rxc3 18. Rfb1) 16... Bc6 {[%emt 0:01:25]} 17. Ba3 {[%emt 0:07:25]} Rc8 $11 {[%emt 0:00:27]} 18. Rab1 {[%emt 0:01:43]} Bxg2 {[%emt 0:01:24]} 19. Kxg2 {[%emt 0:00:06]} Nd7 {[%emt 0:07:34]} 20. Qd4 {[%emt 0:08:44]} h6 {[%emt 0:15:09]} 21. Rfd1 {[%emt 0:05:16]} Nf6 {[%emt 0:06:17]} 22. c4 {[%emt 0:05:47]} Qc6+ {[%emt 0:02:15]} 23. Kg1 {[%emt 0:06:27]} Rd7 {[%emt 0:00:46]} 24. Qf4 {[%emt 0:05:29]} Rxd1+ {[%emt 0:03:33]} 25. Rxd1 {[%emt 0:00:06]} Qa4 {[%emt 0:00:08]} 26. Bb2 {[%emt 0:12:31]} Qxc2 {[%emt 0:04:36]} 27. Rd2 {[%emt 0:01:12]} Qxc4 {[%emt 0:02:36]} 28. Qxc4 {[%emt 0:03:48]} Rxc4 {[%emt 0:00:14]} 29. Bxf6 {[%emt 0:00:02]} gxf6 {[%emt 0:00:09]} 30. Rd3 {[%emt 0:00:04]} Ra4 {[%emt 0:00:11]} 31. a3 {[%emt 0:00:06]} Kg7 {[%emt 0:00:44]} 32. Kg2 {[%emt 0:01:04]} Kg6 {[%emt 0:00:07]} 33. Kg3 {[%emt 0:00:23]} f5 {[%emt 0:01:00]} 34. gxf5+ {[%emt 0:05:05]} Kxf5 {[%emt 0:03:10]} 35. Rf3+ {[%emt 0:00:09]} Kg6 {[%emt 0:00:09]} 36. Rc3 {[%emt 0:00:27]} e5 {[%emt 0:01:17]} 37. f3 {[%emt 0:01:26]} Kf5 {[%emt 0:00:51]} 38. Rb3 {[%emt 0:00:36]} Kg5 {[%emt 0:02:00]} 39. Rc3 {[%emt 0:02:52]} h5 {[%emt 0:00:13]} 40. h4+ {[%emt 0:01:19]} Kf5 {[%emt 0:01:17]} 41. Rb3 {[%emt 0:31:06]} f6 {[%emt 0:30:39]} 42. Rc3 {[%emt 0:00:00]} Ra5 {[%emt 0:00:00]} 43. Rb3 {[%emt 0:00:00]} Ra4 {[%emt 0:00:00]} 44. Rc3 {[%emt 0:00:00]} Ke6 {[%emt 0:00:00]} 45. Rc6+ {[%emt 0:00:00]} Kf7 {[%emt 0:00:00]} 46. Rc7+ {[%emt 0:00:00]} Kg6 {[%emt 0:00:00]} 47. Rc3 {[%emt 0:00:00]} a5 {[%emt 0:00:00]} 48. Rb3 {[%emt 0:00:00]} f5 {[%emt 0:00:00]} 49. Rb6+ {[%emt 0:00:00]} Kf7 {[%emt 0:00:00]} 50. Rh6 {[%emt 0:00:00]} Rxa3 {[%emt 0:00:00]} 51. Rxh5 {[%emt 0:00:00]} Kg6 {[%emt 0:00:00]} 52. Rg5+ {[%emt 0:00:00]} Kf6 {[%emt 0:00:00]} 53. Kf2 {[%emt 0:00:00]} Ra2+ {[%emt 0:00:00]} 54. Ke3 {[%emt 0:00:00]} f4+ {[%emt 0:00:00]} 55. Kd3 {[%emt 0:00:00]} Rf2 {[%emt 0:00:00]} 56. Ke4 {[%emt 0:00:00]} Re2+ {[%emt 0:00:00]} 57. Kd5 {[%emt 0:00:00]} Re3 {[%emt 0:00:00]} 58. Rh5 {[%emt 0:00:00]} Rd3+ {[%emt 0:00:00] Kd4} 0-1

[Event "CZE Extraliga 2019-20"]
[Site "Czech Republic"]
[Date "2020.01.26"]
[Round "6.7"]
[White "Jurcik, Martin"]
[Black "Malik, Jan"]
[Result "1-0"]
[ECO "B90"]
[WhiteElo "2360"]
[BlackElo "2291"]
[Annotator "NA"]
[PlyCount "63"]
[EventDate "2019.09.15"]
[EventType "team-tourn"]
[EventCountry "CZE"]
[SourceTitle "playchess.com"]
[Source "ChessBase"]
[SourceQuality "1"]
[TimeControl "40/5400+30:1800+30"]

1. e4 c5 2. Nf3 d6 3. d4 cxd4 4. Nxd4 Nf6 5. Nc3 a6 6. Be3 e5 7. Nb3 Be7 8. Qd2 Be6 9. f4 {B90: Sicilian Najdorf: Unusual White 6th moves, 6 Be3 Ng4 and 6 Be3 e5} (9. O-O-O Nbd7 10. f4 exf4 11. Bxf4 Ne5 12. Nd4 O-O 13. g3 Qd7 14. Nf5 Bxf5 15. exf5 Qxf5 16. Bg2 Rac8 17. Kb1 Nc4 18. Qd3 Qa5 19. Nd5 Nxd5 20. Bxd5 {1-0 (43) Morozevich,A (2676)-Nepomniachtchi,I (2767) Doha 2016}) 9... Qc7 10. O-O-O Nbd7 11. h3 b5 12. g4 exf4 13. Bxf4 Ne5 14. Kb1 O-O {[#]} 15. Qg2 $146 ({Predecessor:} 15. Nd5 Bxd5 16. exd5 Nc4 17. Qg2 Nd7 {1-0 (39) Vitiugov,N (2609)-Petkevich,J (2434) Cappelle-la-Grande 2008}) 15... Nc4 16. g5 Nd7 17. Nd5 Bxd5 18. exd5 Nc5 19. Bc1 $14 Na4 20. Nd4 Qc5 21. h4 Bd8 22. Rh3 Ba5 23. h5 Rac8 24. Nc6 Rfe8 25. g6 Bc3 26. gxf7+ Kxf7 27. Bxc4 bxc4 28. bxc3 Rc7 29. Ka1 Rb7 30. Rg3 Kg8 31. Rg1 g6 32. Rxg6+ 1-0

[Event "CZE Extraliga 2019-20"]
[Site "Czech Republic"]
[Date "2020.01.26"]
[Round "6.7"]
[White "Jasny, Stanislav"]
[Black "Kriebel, Tadeas"]
[Result "0-1"]
[ECO "E54"]
[WhiteElo "2346"]
[BlackElo "2536"]
[Annotator "ChessBase"]
[PlyCount "114"]
[EventDate "2019.09.15"]
[EventType "team-tourn"]
[EventCountry "CZE"]
[SourceTitle "playchess.com"]
[Source "ChessBase"]
[SourceQuality "1"]
[TimeControl "40/5400+30:1800+30"]

1. d4 {[%emt 0:00:00]} Nf6 {[%emt 0:00:00]} 2. c4 {[%emt 0:00:00]} e6 {[%emt 0:00:00]} 3. Nc3 {[%emt 0:00:21]} Bb4 {[%emt 0:00:00]} 4. e3 {[%emt 0:00:43]} O-O {[%emt 0:00:00]} 5. Bd3 {[%emt 0:00:13]} d5 {[%emt 0:00:03]} 6. Nf3 {[%emt 0:00:22]} dxc4 {[%emt 0:00:04]} 7. Bxc4 {[%emt 0:00:11]} c5 {[%emt 0:00:03]} 8. O-O {[%emt 0:01:40]} cxd4 {[%emt 0:00:04]} 9. exd4 {[%emt 0:00:11]} b6 {[%emt 0:00:04]} 10. Re1 {[%emt 0:02:36]} Bb7 {[%emt 0:00:37]} 11. Bg5 {[%emt 0:00:45]} Nc6 {[%emt 0:01:12]} 12. a3 {[%emt 0:03:03]} Bxc3 {[%emt 0:00:07]} 13. bxc3 {[%emt 0:00:06]} Rc8 {[%emt 0:00:24]} 14. Bf1 {[%emt 0:14:49]} Ne7 {[%emt 0:08:24]} 15. c4 {[%emt 0:10:49]} Nf5 {[%emt 0:10:58]} 16. d5 {[%emt 0:19:49]} h6 {[%emt 0:01:15]} 17. Bxf6 {[%emt 0:04:26]} Qxf6 {[%emt 0:02:05]} 18. Ne5 {[%emt 0:12:37]} Rfd8 {[%emt 0:23:25]} 19. Qa4 {[%emt 0:02:03]} Ra8 {[%emt 0:01:04]} 20. Nc6 {[%emt 0:08:32]} Rd6 {[%emt 0:15:39]} 21. Rad1 {[%emt 0:03:43]} exd5 {[%emt 0:01:27]} 22. cxd5 {[%emt 0:00:05]} Rxd5 {[%emt 0:02:02]} 23. Rxd5 {[%emt 0:00:50]} Bxc6 {[%emt 0:00:06]} 24. Rxf5 {[%emt 0:04:32]} Bxa4 {[%emt 0:00:07]} 25. Rxf6 {[%emt 0:00:05]} gxf6 {[%emt 0:00:05]} 26. Re7 {[%emt 0:00:10]} Bb3 {[%emt 0:08:37]} 27. f3 {[%emt 0:03:00]} a6 {[%emt 0:03:54]} 28. Rb7 {[%emt 0:00:41]} b5 {[%emt 0:00:06]} 29. Rb6 {[%emt 0:00:13]} Be6 {[%emt 0:02:15]} 30. Kf2 {[%emt 0:01:14]} Kf8 {[%emt 0:00:08]} 31. Bd3 {[%emt 0:00:41]} Ra7 {[%emt 0:02:49]} 32. Ke3 {[%emt 0:05:41]} Ke7 {[%emt 0:00:46]} 33. Kd4 {[%emt 0:00:37]} Rd7+ {[%emt 0:00:54]} 34. Kc3 {[%emt 0:00:06]} Rd6 {[%emt 0:00:36]} 35. Rb7+ {[%emt 0:01:30]} Kf8 {[%emt 0:02:20]} 36. Ra7 {[%emt 0:00:22]} f5 {[%emt 0:01:48]} 37. f4 {[%emt 0:01:10]} Kg7 {[%emt 0:00:47]} 38. g3 {[%emt 0:00:03]} Kf6 {[%emt 0:00:11]} 39. Be2 {[%emt 0:00:18]} Rc6+ {[%emt 0:03:07]} 40. Kb2 {[%emt 0:00:42]} Bd5 {[%emt 0:01:35]} 41. Bh5 {[%emt 0:05:54]} Kg7 {[%emt 0:05:02]} 42. Rd7 {[%emt 0:00:56]} Be6 {[%emt 0:01:24]} 43. Ra7 {[%emt 0:00:07]} Bc4 {[%emt 0:03:13]} 44. Ra8 {[%emt 0:06:21]} Rd6 {[%emt 0:05:45]} 45. Kc2 {[%emt 0:01:17]} Re6 {[%emt 0:05:32]} 46. Kd2 {[%emt 0:01:27]} Rd6+ {[%emt 0:00:12]} 47. Kc2 {[%emt 0:00:07]} Rc6 {[%emt 0:03:59]} 48. Kb2 {[%emt 0:00:20]} Re6 {[%emt 0:00:19]} 49. Ra7 {[%emt 0:01:32]} Re1 {[%emt 0:06:54]} 50. Rxa6 {[%emt 0:01:04]} Rh1 {[%emt 0:00:07]} 51. Kc3 {[%emt 0:02:50]} Rxh2 {[%emt 0:00:07]} 52. Bd1 {[%emt 0:00:14]} Rg2 {[%emt 0:01:15]} 53. Kb4 {[%emt 0:05:31]} Bf1 {[%emt 0:02:51]} 54. Bb3 {[%emt 0:01:38]} Rxg3 {[%emt 0:00:05]} 55. Ra7 {[%emt 0:00:10]} Bc4 {[%emt 0:03:19]} 56. Bc2 {[%emt 0:05:33]} Be6 {[%emt 0:01:55]} 57. Kxb5 {[%emt 0:00:24]} h5 {[%emt 0:00:02]} 0-1

[Event "CZE Extraliga 2019-20"]
[Site "Czech Republic"]
[Date "2020.01.26"]
[Round "6.7"]
[White "Hollan, Petr"]
[Black "Balacek, Tadeas"]
[Result "1/2-1/2"]
[ECO "C11"]
[WhiteElo "2301"]
[BlackElo "2331"]
[Annotator "NA"]
[PlyCount "98"]
[EventDate "2019.09.15"]
[EventType "team-tourn"]
[EventCountry "CZE"]
[SourceTitle "playchess.com"]
[Source "ChessBase"]
[SourceQuality "1"]
[TimeControl "40/5400+30:1800+30"]

1. e4 {[%emt 0:00:00]} e6 {[%emt 0:00:00]} 2. d4 {[%emt 0:00:00]} d5 {[%emt 0:00:00]} 3. Nc3 {[%emt 0:03:57]} Nf6 {[%emt 0:00:31]} 4. e5 {[%emt 0:00:07]} Nfd7 {[%emt 0:00:06]} 5. f4 {[%emt 0:00:04]} c5 {[%emt 0:00:09]} 6. Nf3 {[%emt 0:00:04]} Nc6 {[%emt 0:00:15]} 7. Be3 {[%emt 0:00:06]} Be7 {[%emt 0:00:18]} 8. Qd2 {[%emt 0:00:24]} b6 {[%emt 0:06:08] C11: French: Classical System: 4 e5 and 4 Bg5 dxe4} (8... O-O 9. dxc5 Nxc5 10. O-O-O a6 11. h4 b5 12. Bd3 b4 13. Bxc5 Bxc5 14. Na4 Ba7 15. Qe2 f5 16. g4 Ne7 17. Ng5 {0-1 (45) Caruana,F (2828)-Nyzhnyk,I (2638) chess.com INT 2019}) 9. h4 {[%emt 0:09:08]} cxd4 {[%emt 0:09:45]} 10. Nxd4 {[%emt 0:00:12]} Nxd4 {[%emt 0:07:37]} 11. Bxd4 {[%emt 0:00:47]} Bxh4+ $146 {[%emt 0:04:45]} ({Predecessor:} 11... a6 12. h5 b5 13. O-O-O b4 14. Ne2 a5 15. Kb1 O-O 16. g4 {½-½ (54) Zawadzka,J (2426)-Vo,T (2378) Khanty-Mansiysk 2017}) 12. Kd1 {[%emt 0:02:36]} Be7 {[%emt 0:06:30]} 13. g4 {[%emt 0:01:17]} Nb8 {[%emt 0:09:24]} 14. Bd3 {[%emt 0:11:48]} Nc6 {[%emt 0:02:35]} 15. Bf2 {[%emt 0:02:13]} Bb7 {[%emt 0:03:32]} 16. Nb5 {[%emt 0:11:57]} (16. a3 $15) 16... Qd7 {[%emt 0:03:15]} 17. a4 {[%emt 0:07:36]} d4 {[%emt 0:06:47]} 18. Rh3 {[%emt 0:04:09]} O-O-O {[%emt 0:02:14]} 19. Qe2 {[%emt 0:04:39]} Kb8 {[%emt 0:01:42]} 20. f5 {[%emt 0:01:49]} a6 {[%emt 0:09:30]} 21. f6 {[%emt 0:17:34]} gxf6 {[%emt 0:02:29]} 22. exf6 {[%emt 0:00:05]} Bxf6 $19 {[%emt 0:01:44]} 23. Bg3+ {[%emt 0:02:01]} e5 {[%emt 0:00:42]} 24. Rh6 {[%emt 0:05:22]} Bg7 {[%emt 0:02:59]} 25. Rxc6 {[%emt 0:02:07]} Bxc6 {[%emt 0:07:26]} 26. Bxe5+ {[%emt 0:00:08]} Bxe5 {[%emt 0:00:08]} 27. Qxe5+ {[%emt 0:00:04]} Kb7 {[%emt 0:01:40]} 28. Bf5 {[%emt 0:00:38]} Rhe8 {[%emt 0:01:57]} 29. Bxd7 {[%emt 0:12:22]} Rxe5 {[%emt 0:01:33]} 30. Nd6+ {[%emt 0:00:21]} Kc7 {[%emt 0:00:33]} 31. Bxc6 {[%emt 0:00:56]} Rxd6 {[%emt 0:00:19]} 32. Ba8 {[%emt 0:00:42]} Rg6 {[%emt 0:00:55]} 33. Ra3 {[%emt 0:00:24]} Rxg4 {[%emt 0:00:23]} 34. Rh3 {[%emt 0:00:10]} h5 {[%emt 0:00:39]} 35. Bf3 {[%emt 0:00:20]} f5 {[%emt 0:00:54]} 36. Rxh5 {[%emt 0:00:08]} Rf4 {[%emt 0:03:44]} 37. Be2 {[%emt 0:00:12]} a5 {[%emt 0:00:46]} 38. Rh6 {[%emt 0:01:05]} Rf2 {[%emt 0:02:25]} 39. Bb5 {[%emt 0:00:15]} f4 {[%emt 0:01:44]} 40. Rh7+ {[%emt 0:00:31]} Kc8 {[%emt 0:01:20]} 41. Rh8+ {[%emt 0:30:36]} Kc7 {[%emt 0:04:39]} 42. Rh7+ {[%emt 0:00:00]} Kd6 {[%emt 0:02:07]} 43. Rd7+ {[%emt 0:00:00]} Ke6 {[%emt 0:02:01]} 44. Rxd4 {[%emt 0:00:00]} Rg5 {[%emt 0:01:00]} 45. Re4+ {[%emt 0:00:00]} Kf5 {[%emt 0:04:04]} 46. Bd3 {[%emt 0:00:00]} Kg4 {[%emt 0:06:18]} 47. b3 {[%emt 0:00:00]} Kg3 {[%emt 0:00:56]} 48. Re6 {[%emt 0:00:00]} Rh5 {[%emt 0:01:02]} 49. Kc1 {[%emt 0:00:00]} f3 {[%emt 0:03:15]} 1/2-1/2

[Event "CZE Extraliga 2019-20"]
[Site "Czech Republic"]
[Date "2020.01.26"]
[Round "6.8"]
[White "Zilka, Stepan"]
[Black "Rabatin, Jakub"]
[Result "1/2-1/2"]
[ECO "E73"]
[WhiteElo "2533"]
[BlackElo "2303"]
[Annotator "RC"]
[PlyCount "159"]
[EventDate "2019.09.15"]
[EventType "team-tourn"]
[EventCountry "CZE"]
[SourceTitle "playchess.com"]
[Source "ChessBase"]
[SourceQuality "1"]
[TimeControl "40/5400+30:1800+30"]

1. d4 Nf6 2. c4 g6 3. Nc3 Bg7 4. e4 d6 5. Be2 O-O 6. h4 c5 7. d5 e6 8. h5 exd5 9. cxd5 Re8 10. hxg6 fxg6 11. Bg5 Nbd7 12. Qc2 a6 13. a4 Ne5 14. Nf3 Nxf3+ 15. gxf3 Bd7 16. Qc1 Qe7 17. Kf1 Qf7 18. Bf4 Qe7 19. Ra3 Nh5 20. Bg5 Qf7 21. Rb3 Rab8 22. Rb6 Be5 23. Rh4 Rf8 24. Bh6 Qe7 25. Rxh5 gxh5 26. Qg5+ Qxg5 27. Bxg5 Bh3+ 28. Ke1 Bf6 29. f4 Bxg5 30. fxg5 h4 31. Rxd6 Bg2 32. Rh6 Rf4 33. e5 h3 34. Bd3 Re8 35. e6 Rd4 36. Bxh7+ Kg7 37. Bf5 Bxd5 38. Rg6+ Kf8 39. Bxh3 Bb3 40. f3 Rh4 41. Bf5 Rf4 42. Rf6+ Ke7 43. Kf2 Rf8 44. Rxf8 Kxf8 45. Bg4 Ke7 46. Ne4 Bxe6 47. Kg3 Rf8 48. Nxc5 Bxg4 49. Kxg4 b6 50. Nxa6 Ra8 51. Nc7 Rxa4+ 52. f4 Kf7 53. Nd5 b5 54. b4 Ra1 55. f5 Rd1 56. Nc7 Rg1+ 57. Kf4 Rf1+ 58. Ke5 Re1+ 59. Kd4 Rd1+ 60. Ke4 Re1+ 61. Kd5 Rf1 62. Ke5 Re1+ 63. Kd6 Rf1 64. g6+ Kg7 65. Ke6 Re1+ 66. Kd6 Rf1 67. Ne6+ Kf6 68. Nd4 Rc1 69. Nc6 Rf1 70. Ne7 Re1 71. Nd5+ Kg7 72. Nf4 Kf6 73. Nd5+ Kg7 74. Kc6 Re5 75. Nc7 Rxf5 76. Nxb5 Kxg6 77. Nd6 Rf1 78. b5 Rb1 79. b6 Rxb6+ 80. Kxb6 1/2-1/2